[Event "Titled Tuesday Blitz July 26 Late 2022"]
[White "Csonka, Balazs"]
[Black "Pakleza, Zbigniew"]
[WhiteFideId "742910"]
[BlackFideId "1119290"]
[WhiteElo "2404"]
[BlackElo "2467"]
[Result "0-1"]
[Round "07"]
[TimeControl "180+1"]
[Date "2022.07.26"]
[WhiteClock "0:00:04"]
[BlackClock "0:00:32"]

1. e4 {[%clk 0:03:00]}  d6 {[%clk 0:02:58]} 2. d4 {[%clk 0:02:59]}  Nf6 {[%clk 0:02:59]} 3. Nc3 {[%clk 0:02:59]}  c6 {[%clk 0:02:59]} 4. f4 {[%clk 0:02:52]}  Qb6 {[%clk 0:02:59]} 5. Nf3 {[%clk 0:02:44]}  Bg4 {[%clk 0:02:58]} 6. h3 {[%clk 0:02:23]}  Bxf3 {[%clk 0:02:57]} 7. Qxf3 {[%clk 0:02:24]}  e6 {[%clk 0:02:56]} 8. Ne2 {[%clk 0:02:06]}  d5 {[%clk 0:02:53]} 9. exd5 {[%clk 0:01:52]}  cxd5 {[%clk 0:02:50]} 10. c3 {[%clk 0:01:45]}  Nc6 {[%clk 0:02:43]} 11. Ng3 {[%clk 0:01:36]}  g6 {[%clk 0:02:38]} 12. Bd3 {[%clk 0:01:32]}  O-O-O {[%clk 0:02:33]} 13. O-O {[%clk 0:01:28]}  Bd6 {[%clk 0:02:33]} 14. Kh1 {[%clk 0:01:21]}  h5 {[%clk 0:02:31]} 15. b4 {[%clk 0:01:03]}  Kb8 {[%clk 0:02:30]} 16. a4 {[%clk 0:01:02]}  Qc7 {[%clk 0:02:31]} 17. Ne2 {[%clk 0:00:59]}  Ne7 {[%clk 0:02:27]} 18. Bd2 {[%clk 0:00:45]}  Nf5 {[%clk 0:02:20]} 19. Rfc1 {[%clk 0:00:45]}  Qe7 {[%clk 0:02:15]} 20. a5 {[%clk 0:00:41]}  Rc8 {[%clk 0:02:12]} 21. a6 {[%clk 0:00:37]}  b6 {[%clk 0:02:12]} 22. b5 {[%clk 0:00:37]}  Qd7 {[%clk 0:01:58]} 23. Ra4 {[%clk 0:00:24]}  Be7 {[%clk 0:01:47]} 24. Ng3 {[%clk 0:00:16]}  Nd6 {[%clk 0:01:44]} 25. Nf1 {[%clk 0:00:15]}  Nfe4 {[%clk 0:01:40]} 26. Be1 {[%clk 0:00:15]}  f5 {[%clk 0:01:39]} 27. Ne3 {[%clk 0:00:11]}  Nxb5 {[%clk 0:01:35]} 28. c4 {[%clk 0:00:09]}  Nxd4 {[%clk 0:01:36]} 29. Qd1 {[%clk 0:00:10]}  Rhd8 {[%clk 0:01:06]} 30. Rb1 {[%clk 0:00:10]}  dxc4 {[%clk 0:01:04]} 31. Rxc4 {[%clk 0:00:09]}  Rxc4 {[%clk 0:01:02]} 32. Nxc4 {[%clk 0:00:09]}  Nc6 {[%clk 0:00:56]} 33. Rb3 {[%clk 0:00:06]}  Bc5 {[%clk 0:00:52]} 34. Qb1 {[%clk 0:00:05]}  Qd4 {[%clk 0:00:48]} 35. Bh4 {[%clk 0:00:04]}  Nf2+ {[%clk 0:00:44]} 36. Bxf2 {[%clk 0:00:03]}  Qxf2 {[%clk 0:00:44]} 37. Nxb6 {[%clk 0:00:02]}  Bxb6 {[%clk 0:00:43]} 38. Rb2 {[%clk 0:00:02]}  Qd4 {[%clk 0:00:37]} 39. Bc4 {[%clk 0:00:02]}  Qd1+ {[%clk 0:00:37]} 40. Qxd1 {[%clk 0:00:02]}  Rxd1+ {[%clk 0:00:38]} 41. Kh2 {[%clk 0:00:02]}  Nd4 {[%clk 0:00:34]} 42. Kg3 {[%clk 0:00:03]}  Kc8 {[%clk 0:00:32]} 43. Kh4 {[%clk 0:00:03]}  Bd8+ {[%clk 0:00:32]} 44. Kg3 {[%clk 0:00:03]}  h4+ {[%clk 0:00:32]} 45. Kf2 {[%clk 0:00:04]}  Bb6 {[%clk 0:00:32]} 0-1


[Site "https://www.chess.com"]

[Event "Titled Tuesday Blitz July 26 Late 2022"]
[White "Drygalov, Andrey"]
[Black "Leiva, Gianmarco"]
[WhiteFideId "24171735"]
[BlackFideId "3804399"]
[WhiteElo "2531"]
[BlackElo "2323"]
[Result "0-1"]
[Round "07"]
[TimeControl "180+1"]
[Date "2022.07.26"]
[WhiteClock "0:00:03"]
[BlackClock "0:00:03"]

1. d4 {[%clk 0:02:59]}  Nf6 {[%clk 0:02:59]} 2. c4 {[%clk 0:02:58]}  e6 {[%clk 0:03:00]} 3. Nc3 {[%clk 0:02:58]}  Bb4 {[%clk 0:02:58]} 4. e3 {[%clk 0:02:58]}  O-O {[%clk 0:02:58]} 5. Bd3 {[%clk 0:02:58]}  c6 {[%clk 0:02:56]} 6. a3 {[%clk 0:02:54]}  Ba5 {[%clk 0:02:53]} 7. c5 {[%clk 0:02:52]}  Bc7 {[%clk 0:02:40]} 8. b4 {[%clk 0:02:48]}  e5 {[%clk 0:02:35]} 9. Nge2 {[%clk 0:02:32]}  d5 {[%clk 0:02:31]} 10. cxd6 {[%clk 0:02:31]}  Qxd6 {[%clk 0:02:25]} 11. dxe5 {[%clk 0:02:31]}  Qxe5 {[%clk 0:02:25]} 12. e4 {[%clk 0:02:31]}  Rd8 {[%clk 0:02:23]} 13. Bf4 {[%clk 0:02:25]}  Qe7 {[%clk 0:02:14]} 14. Bxc7 {[%clk 0:02:17]}  Qxc7 {[%clk 0:02:15]} 15. f3 {[%clk 0:01:46]}  a5 {[%clk 0:02:11]} 16. bxa5 {[%clk 0:01:30]}  Na6 {[%clk 0:01:48]} 17. Qb1 {[%clk 0:01:26]}  Nc5 {[%clk 0:01:44]} 18. Bc2 {[%clk 0:01:26]}  Qxa5 {[%clk 0:01:32]} 19. O-O {[%clk 0:01:25]}  g6 {[%clk 0:01:29]} 20. Qb4 {[%clk 0:01:25]}  Rd2 {[%clk 0:01:23]} 21. Qxa5 {[%clk 0:00:57]}  Rxa5 {[%clk 0:01:22]} 22. Rfc1 {[%clk 0:00:57]}  Be6 {[%clk 0:01:16]} 23. Kf2 {[%clk 0:00:55]}  Bb3 {[%clk 0:01:14]} 24. Bb1 {[%clk 0:00:45]}  Bc4 {[%clk 0:01:10]} 25. Ke3 {[%clk 0:00:35]}  Nb3 {[%clk 0:00:42]} 26. Re1 {[%clk 0:00:02]}  Bxe2 {[%clk 0:00:27]} 27. Nxe2 {[%clk 0:00:02]}  Rxe2+ {[%clk 0:00:19]} 28. Rxe2 {[%clk 0:00:02]}  Nxa1 {[%clk 0:00:19]} 29. Ra2 {[%clk 0:00:02]}  Nb3 {[%clk 0:00:20]} 30. Bc2 {[%clk 0:00:03]}  Nc5 {[%clk 0:00:20]} 31. e5 {[%clk 0:00:04]}  Nd5+ {[%clk 0:00:20]} 32. Kd4 {[%clk 0:00:04]}  Nc7 {[%clk 0:00:19]} 33. Kc4 {[%clk 0:00:04]}  Nd7 {[%clk 0:00:18]} 34. f4 {[%clk 0:00:04]}  Nd5 {[%clk 0:00:18]} 35. g3 {[%clk 0:00:03]}  Ne3+ {[%clk 0:00:18]} 36. Kd3 {[%clk 0:00:03]}  Nxc2 {[%clk 0:00:18]} 37. Kxc2 {[%clk 0:00:04]}  Nb6 {[%clk 0:00:18]} 38. Kb3 {[%clk 0:00:04]}  Rb5+ {[%clk 0:00:17]} 39. Kc3 {[%clk 0:00:05]}  Nd5+ {[%clk 0:00:17]} 40. Kc4 {[%clk 0:00:05]}  Ne3+ {[%clk 0:00:16]} 41. Kd3 {[%clk 0:00:05]}  Nd5 {[%clk 0:00:14]} 42. Kc4 {[%clk 0:00:05]}  Kg7 {[%clk 0:00:14]} 43. Re2 {[%clk 0:00:04]}  Ra5 {[%clk 0:00:13]} 44. Ra2 {[%clk 0:00:04]}  b6 {[%clk 0:00:09]} 45. Kd4 {[%clk 0:00:04]}  Ra4+ {[%clk 0:00:09]} 46. Kd3 {[%clk 0:00:04]}  c5 {[%clk 0:00:08]} 47. Rb2 {[%clk 0:00:03]}  Rxa3+ {[%clk 0:00:06]} 48. Kc4 {[%clk 0:00:04]}  Nb4 {[%clk 0:00:06]} 49. Kb5 {[%clk 0:00:05]}  Ra2 {[%clk 0:00:04]} 50. Rb1 {[%clk 0:00:04]}  Rxh2 {[%clk 0:00:04]} 51. Kxb6 {[%clk 0:00:04]}  Nd3 {[%clk 0:00:03]} 52. Rd1 {[%clk 0:00:02]}  c4 {[%clk 0:00:03]} 53. Kb5 {[%clk 0:00:03]}  Rc2 {[%clk 0:00:03]} 54. Ra1 {[%clk 0:00:02]}  c3 {[%clk 0:00:02]} 55. Kc4 {[%clk 0:00:03]}  Nf2 {[%clk 0:00:02]} 56. Kb3 {[%clk 0:00:03]}  Re2 {[%clk 0:00:02]} 57. Kxc3 {[%clk 0:00:03]}  Re3+ {[%clk 0:00:03]} 58. Kd4 {[%clk 0:00:04]}  Rxg3 {[%clk 0:00:03]} 59. Ra7 {[%clk 0:00:04]}  Ng4 {[%clk 0:00:03]} 60. e6 {[%clk 0:00:04]}  Rf3 {[%clk 0:00:04]} 61. Rxf7+ {[%clk 0:00:04]}  Kg8 {[%clk 0:00:04]} 62. Kd5 {[%clk 0:00:03]}  Nh6 {[%clk 0:00:04]} 63. Ra7 {[%clk 0:00:02]}  Rd3+ {[%clk 0:00:03]} 64. Ke5 {[%clk 0:00:01]}  Re3+ {[%clk 0:00:03]} 65. Kd6 {[%clk 0:00:01]}  Nf5+ {[%clk 0:00:03]} 66. Kd5 {[%clk 0:00:02]}  Re1 {[%clk 0:00:03]} 67. Ra8+ {[%clk 0:00:03]}  Kg7 {[%clk 0:00:04]} 68. Ra7+ {[%clk 0:00:03]}  Kh6 {[%clk 0:00:04]} 69. Rf7 {[%clk 0:00:02]}  Re2 {[%clk 0:00:04]} 70. Rf8 {[%clk 0:00:02]}  Rd2+ {[%clk 0:00:04]} 71. Ke5 {[%clk 0:00:02]}  Re2+ {[%clk 0:00:04]} 72. Kf6 {[%clk 0:00:02]}  Kh5 {[%clk 0:00:04]} 73. Rf7 {[%clk 0:00:03]}  h6 {[%clk 0:00:04]} 74. Rf8 {[%clk 0:00:03]}  Kg4 {[%clk 0:00:03]} 75. Rg8 {[%clk 0:00:02]}  Kxf4 {[%clk 0:00:03]} 76. Rxg6 {[%clk 0:00:03]}  h5 {[%clk 0:00:03]} 77. Rg5 {[%clk 0:00:03]}  Rxe6+ {[%clk 0:00:03]} 0-1


[Site "https://www.chess.com"]

[Event "Titled Tuesday Blitz July 26 Late 2022"]
[White "Estrada Nieto, Julian"]
[Black "Prieto Aranguren, Alain"]
[WhiteFideId "5101018"]
[BlackFideId "2268906"]
[WhiteElo "2252"]
[BlackElo "2224"]
[Result "0-1"]
[Round "07"]
[TimeControl "180+1"]
[Date "2022.07.27"]
[WhiteClock "0:00:15"]
[BlackClock "0:00:11"]

1. e4 {[%clk 0:03:00]}  c6 {[%clk 0:02:59]} 2. d4 {[%clk 0:03:00]}  d5 {[%clk 0:02:56]} 3. Nc3 {[%clk 0:03:00]}  a6 {[%clk 0:02:56]} 4. h3 {[%clk 0:02:55]}  Qa5 {[%clk 0:02:51]} 5. e5 {[%clk 0:02:43]}  Bf5 {[%clk 0:02:48]} 6. Bd3 {[%clk 0:02:42]}  Bxd3 {[%clk 0:02:48]} 7. Qxd3 {[%clk 0:02:43]}  e6 {[%clk 0:02:48]} 8. Nf3 {[%clk 0:02:43]}  c5 {[%clk 0:02:47]} 9. dxc5 {[%clk 0:02:37]}  Bxc5 {[%clk 0:02:45]} 10. O-O {[%clk 0:02:37]}  Nc6 {[%clk 0:02:45]} 11. a3 {[%clk 0:02:36]}  Qc7 {[%clk 0:02:44]} 12. Re1 {[%clk 0:02:20]}  Nge7 {[%clk 0:02:44]} 13. b4 {[%clk 0:02:12]}  Ba7 {[%clk 0:02:43]} 14. b5 {[%clk 0:02:10]}  Na5 {[%clk 0:02:42]} 15. bxa6 {[%clk 0:02:09]}  bxa6 {[%clk 0:02:41]} 16. Ne2 {[%clk 0:01:43]}  Nc4 {[%clk 0:02:33]} 17. Ned4 {[%clk 0:01:40]}  Ng6 {[%clk 0:02:32]} 18. a4 {[%clk 0:01:39]}  O-O {[%clk 0:02:30]} 19. h4 {[%clk 0:01:24]}  Ngxe5 {[%clk 0:02:20]} 20. Nxe5 {[%clk 0:01:24]}  Nxe5 {[%clk 0:02:20]} 21. Qg3 {[%clk 0:01:24]}  Bxd4 {[%clk 0:02:03]} 22. Ra3 {[%clk 0:01:19]}  Qxc2 {[%clk 0:01:55]} 23. Bf4 {[%clk 0:01:12]}  Nc4 {[%clk 0:01:39]} 24. Rc1 {[%clk 0:01:02]}  Qb2 {[%clk 0:01:31]} 25. Rd3 {[%clk 0:00:53]}  Be5 {[%clk 0:01:06]} 26. Rxc4 {[%clk 0:00:43]}  Bxf4 {[%clk 0:00:52]} 27. Rxf4 {[%clk 0:00:41]}  Rac8 {[%clk 0:00:48]} 28. Rd1 {[%clk 0:00:34]}  Rc1 {[%clk 0:00:46]} 29. Rxc1 {[%clk 0:00:33]}  Qxc1+ {[%clk 0:00:46]} 30. Kh2 {[%clk 0:00:34]}  Rc8 {[%clk 0:00:40]} 31. h5 {[%clk 0:00:32]}  Qc3 {[%clk 0:00:36]} 32. Rf3 {[%clk 0:00:21]}  Qd4 {[%clk 0:00:31]} 33. h6 {[%clk 0:00:20]}  g6 {[%clk 0:00:23]} 34. Rb3 {[%clk 0:00:19]}  Qd2 {[%clk 0:00:18]} 35. Qh4 {[%clk 0:00:16]}  d4 {[%clk 0:00:08]} 36. Re3 {[%clk 0:00:14]}  dxe3 {[%clk 0:00:06]} 37. Qf6 {[%clk 0:00:14]}  Qd6+ {[%clk 0:00:06]} 38. g3 {[%clk 0:00:13]}  Qf8 {[%clk 0:00:06]} 39. fxe3 {[%clk 0:00:13]}  Qxh6+ {[%clk 0:00:06]} 40. Kg2 {[%clk 0:00:14]}  Qg7 {[%clk 0:00:07]} 41. Qg5 {[%clk 0:00:14]}  Rd8 {[%clk 0:00:07]} 42. Kf3 {[%clk 0:00:14]}  Qc3 {[%clk 0:00:07]} 43. Qxd8+ {[%clk 0:00:12]}  Kg7 {[%clk 0:00:07]} 44. Qg5 {[%clk 0:00:12]}  Qf6+ {[%clk 0:00:07]} 45. Qxf6+ {[%clk 0:00:10]}  Kxf6 {[%clk 0:00:08]} 46. Ke4 {[%clk 0:00:11]}  Ke7 {[%clk 0:00:08]} 47. a5 {[%clk 0:00:12]}  Kd6 {[%clk 0:00:07]} 48. g4 {[%clk 0:00:11]}  f5+ {[%clk 0:00:07]} 49. gxf5 {[%clk 0:00:11]}  exf5+ {[%clk 0:00:08]} 50. Kf4 {[%clk 0:00:11]}  Ke6 {[%clk 0:00:08]} 51. Kg5 {[%clk 0:00:10]}  Ke5 {[%clk 0:00:08]} 52. Kh6 {[%clk 0:00:10]}  Ke4 {[%clk 0:00:08]} 53. Kxh7 {[%clk 0:00:11]}  Kxe3 {[%clk 0:00:09]} 54. Kxg6 {[%clk 0:00:12]}  f4 {[%clk 0:00:10]} 55. Kf6 {[%clk 0:00:12]}  f3 {[%clk 0:00:10]} 56. Ke6 {[%clk 0:00:13]}  f2 {[%clk 0:00:11]} 57. Kd6 {[%clk 0:00:14]}  f1=Q {[%clk 0:00:11]} 58. Kc6 {[%clk 0:00:15]}  Qb5+ {[%clk 0:00:11]} 59. Kc7 {[%clk 0:00:15]}  Qxa5+ {[%clk 0:00:11]} 0-1


[Site "https://www.chess.com"]

[Event "Titled Tuesday Blitz July 26 Late 2022"]
[White "Federzoni, Enzo"]
[Black "Lewtak, Damian"]
[WhiteFideId "2173301"]
[BlackFideId "1141724"]
[WhiteElo "1949"]
[BlackElo "2359"]
[Result "0-1"]
[Round "07"]
[TimeControl "180+1"]
[Date "2022.07.27"]
[WhiteClock "0:01:26"]
[BlackClock "0:01:03"]

1. e4 {[%clk 0:03:00]}  g6 {[%clk 0:02:58]} 2. d4 {[%clk 0:03:00]}  Bg7 {[%clk 0:02:59]} 3. Nc3 {[%clk 0:03:00]}  d6 {[%clk 0:02:55]} 4. Be3 {[%clk 0:03:00]}  e5 {[%clk 0:02:54]} 5. dxe5 {[%clk 0:02:56]}  dxe5 {[%clk 0:02:55]} 6. Qxd8+ {[%clk 0:02:56]}  Kxd8 {[%clk 0:02:55]} 7. O-O-O+ {[%clk 0:02:53]}  Bd7 {[%clk 0:02:50]} 8. Bc4 {[%clk 0:02:49]}  Nh6 {[%clk 0:02:48]} 9. h4 {[%clk 0:02:47]}  Ng4 {[%clk 0:02:32]} 10. Bxf7 {[%clk 0:02:37]}  Nxe3 {[%clk 0:02:31]} 11. fxe3 {[%clk 0:02:38]}  Ke7 {[%clk 0:02:28]} 12. Bb3 {[%clk 0:02:36]}  c6 {[%clk 0:02:27]} 13. Nf3 {[%clk 0:02:36]}  Na6 {[%clk 0:02:16]} 14. h5 {[%clk 0:02:34]}  Bf6 {[%clk 0:02:12]} 15. Nh4 {[%clk 0:02:20]}  Bxh4 {[%clk 0:02:01]} 16. Rxh4 {[%clk 0:02:20]}  g5 {[%clk 0:02:01]} 17. Rhh1 {[%clk 0:02:16]}  h6 {[%clk 0:02:00]} 18. Rhf1 {[%clk 0:02:13]}  Rhf8 {[%clk 0:02:00]} 19. Bc4 {[%clk 0:02:03]}  Nc7 {[%clk 0:01:41]} 20. Rxf8 {[%clk 0:01:59]}  Rxf8 {[%clk 0:01:40]} 21. Rf1 {[%clk 0:02:00]}  Rxf1+ {[%clk 0:01:32]} 22. Bxf1 {[%clk 0:02:01]}  Kf6 {[%clk 0:01:29]} 23. Kd2 {[%clk 0:02:00]}  g4 {[%clk 0:01:28]} 24. Ne2 {[%clk 0:01:58]}  Kg5 {[%clk 0:01:28]} 25. Ng3 {[%clk 0:01:57]}  Kh4 {[%clk 0:01:26]} 26. Nf5+ {[%clk 0:01:57]}  Bxf5 {[%clk 0:01:23]} 27. exf5 {[%clk 0:01:58]}  Kxh5 {[%clk 0:01:17]} 28. Kd3 {[%clk 0:01:58]}  Kg5 {[%clk 0:01:17]} 29. Ke4 {[%clk 0:01:58]}  Kf6 {[%clk 0:01:17]} 30. Bc4 {[%clk 0:01:57]}  Ne8 {[%clk 0:01:15]} 31. Be2 {[%clk 0:01:53]}  Nd6+ {[%clk 0:01:14]} 32. Kd3 {[%clk 0:01:53]}  Kxf5 {[%clk 0:01:14]} 33. b4 {[%clk 0:01:49]}  b6 {[%clk 0:01:13]} 34. c4 {[%clk 0:01:48]}  c5 {[%clk 0:01:13]} 35. bxc5 {[%clk 0:01:41]}  bxc5 {[%clk 0:01:14]} 36. Kc3 {[%clk 0:01:40]}  h5 {[%clk 0:01:14]} 37. g3 {[%clk 0:01:39]}  Kg5 {[%clk 0:01:09]} 38. Kd3 {[%clk 0:01:35]}  Nf5 {[%clk 0:01:07]} 39. Bd1 {[%clk 0:01:25]}  Nxg3 {[%clk 0:01:07]} 40. Kd2 {[%clk 0:01:25]}  h4 {[%clk 0:01:07]} 41. Ke1 {[%clk 0:01:26]}  h3 {[%clk 0:01:08]} 42. Kf2 {[%clk 0:01:26]}  h2 {[%clk 0:01:03]} 0-1


[Site "https://www.chess.com"]

[Event "Titled Tuesday Blitz July 26 Late 2022"]
[White "Gallana, Marco"]
[Black "Derraugh, Geordie"]
[WhiteFideId "824542"]
[BlackFideId "2603950"]
[WhiteElo "2290"]
[BlackElo "2116"]
[Result "1-0"]
[Round "07"]
[TimeControl "180+1"]
[Date "2022.07.27"]
[WhiteClock "0:00:09"]
[BlackClock "0:00:02"]

1. d4 {[%clk 0:03:00]}  Nf6 {[%clk 0:02:56]} 2. c4 {[%clk 0:03:00]}  g6 {[%clk 0:02:56]} 3. Nc3 {[%clk 0:03:00]}  d5 {[%clk 0:02:57]} 4. Nf3 {[%clk 0:02:59]}  Bg7 {[%clk 0:02:56]} 5. Bg5 {[%clk 0:02:59]}  Ne4 {[%clk 0:02:56]} 6. Bf4 {[%clk 0:03:00]}  Nxc3 {[%clk 0:02:55]} 7. bxc3 {[%clk 0:03:01]}  dxc4 {[%clk 0:02:55]} 8. e3 {[%clk 0:02:58]}  O-O {[%clk 0:02:53]} 9. Bxc4 {[%clk 0:02:57]}  c5 {[%clk 0:02:53]} 10. O-O {[%clk 0:02:56]}  Nc6 {[%clk 0:02:53]} 11. h3 {[%clk 0:02:47]}  Bf5 {[%clk 0:02:45]} 12. Qe2 {[%clk 0:02:43]}  Na5 {[%clk 0:02:42]} 13. Bd3 {[%clk 0:02:33]}  Bxd3 {[%clk 0:02:26]} 14. Qxd3 {[%clk 0:02:34]}  Rc8 {[%clk 0:02:24]} 15. Rfc1 {[%clk 0:02:27]}  Qd5 {[%clk 0:02:21]} 16. Rab1 {[%clk 0:02:04]}  b6 {[%clk 0:02:04]} 17. c4 {[%clk 0:01:56]}  Qh5 {[%clk 0:02:00]} 18. d5 {[%clk 0:01:55]}  Rfd8 {[%clk 0:01:58]} 19. e4 {[%clk 0:01:49]}  Nb7 {[%clk 0:01:53]} 20. a4 {[%clk 0:01:45]}  e5 {[%clk 0:01:42]} 21. Bg5 {[%clk 0:01:37]}  f6 {[%clk 0:01:40]} 22. Bd2 {[%clk 0:01:34]}  f5 {[%clk 0:01:39]} 23. Ng5 {[%clk 0:01:30]}  Rd6 {[%clk 0:01:16]} 24. exf5 {[%clk 0:01:24]}  Bh6 {[%clk 0:01:11]} 25. Ne4 {[%clk 0:01:20]}  gxf5 {[%clk 0:00:51]} 26. Nxd6 {[%clk 0:01:15]}  Nxd6 {[%clk 0:00:52]} 27. Qg3+ {[%clk 0:01:10]}  Kf7 {[%clk 0:00:42]} 28. Bxh6 {[%clk 0:01:08]}  Qxh6 {[%clk 0:00:42]} 29. Qxe5 {[%clk 0:01:08]}  Re8 {[%clk 0:00:41]} 30. Qb2 {[%clk 0:00:54]}  Re4 {[%clk 0:00:40]} 31. a5 {[%clk 0:00:48]}  Nxc4 {[%clk 0:00:37]} 32. Rxc4 {[%clk 0:00:41]}  Rxc4 {[%clk 0:00:37]} 33. axb6 {[%clk 0:00:37]}  axb6 {[%clk 0:00:16]} 34. Qa2 {[%clk 0:00:33]}  Rc1+ {[%clk 0:00:12]} 35. Rxc1 {[%clk 0:00:24]}  Qxc1+ {[%clk 0:00:13]} 36. Kh2 {[%clk 0:00:24]}  Qf4+ {[%clk 0:00:13]} 37. Kg1 {[%clk 0:00:24]}  Qd6 {[%clk 0:00:08]} 38. Qc4 {[%clk 0:00:22]}  Kf6 {[%clk 0:00:08]} 39. f4 {[%clk 0:00:21]}  Qd7 {[%clk 0:00:04]} 40. Qc3+ {[%clk 0:00:20]}  Kg6 {[%clk 0:00:03]} 41. Qe5 {[%clk 0:00:20]}  b5 {[%clk 0:00:02]} 42. d6 {[%clk 0:00:19]}  c4 {[%clk 0:00:02]} 43. Qd4 {[%clk 0:00:15]}  Kf7 {[%clk 0:00:01]} 44. Kh2 {[%clk 0:00:14]}  Qe6 {[%clk 0:00:01]} 45. Qa7+ {[%clk 0:00:11]}  Ke8 {[%clk 0:00:01]} 46. Qb8+ {[%clk 0:00:10]}  Kf7 {[%clk 0:00:01]} 47. Qxb5 {[%clk 0:00:09]}  Qxd6 {[%clk 0:00:01]} 48. Qxc4+ {[%clk 0:00:08]}  Kg6 {[%clk 0:00:02]} 49. Qg8+ {[%clk 0:00:08]}  Kh6 {[%clk 0:00:02]} 50. Qg5# {[%clk 0:00:09]} 1-0


[Site "https://www.chess.com"]

[Event "Titled Tuesday Blitz July 26 Late 2022"]
[White "Gracia Alvarez, Gerardo Antonio"]
[Black "Djordjevic, Vuk"]
[WhiteFideId "5109124"]
[BlackFideId "902098"]
[WhiteElo "2139"]
[BlackElo "2456"]
[Result "0-1"]
[Round "07"]
[TimeControl "180+1"]
[Date "2022.07.27"]
[WhiteClock "0:00:02"]
[BlackClock "0:01:05"]

1. e4 {[%clk 0:03:00]}  e6 {[%clk 0:03:00]} 2. d4 {[%clk 0:03:00]}  d5 {[%clk 0:03:01]} 3. e5 {[%clk 0:03:01]}  c5 {[%clk 0:03:01]} 4. c3 {[%clk 0:03:01]}  Nc6 {[%clk 0:03:02]} 5. Nf3 {[%clk 0:03:02]}  Qb6 {[%clk 0:03:02]} 6. Bd3 {[%clk 0:03:02]}  cxd4 {[%clk 0:03:01]} 7. O-O {[%clk 0:03:03]}  Bd7 {[%clk 0:03:01]} 8. Re1 {[%clk 0:03:03]}  Nge7 {[%clk 0:02:58]} 9. cxd4 {[%clk 0:02:59]}  Nb4 {[%clk 0:02:56]} 10. Bf1 {[%clk 0:02:45]}  Bb5 {[%clk 0:02:55]} 11. Bxb5+ {[%clk 0:02:20]}  Qxb5 {[%clk 0:02:56]} 12. a3 {[%clk 0:02:10]}  Nd3 {[%clk 0:02:55]} 13. Qe2 {[%clk 0:02:10]}  Qa6 {[%clk 0:02:50]} 14. Rd1 {[%clk 0:02:04]}  Nc5 {[%clk 0:02:47]} 15. Qxa6 {[%clk 0:01:54]}  Nxa6 {[%clk 0:02:47]} 16. Nc3 {[%clk 0:01:53]}  Nc6 {[%clk 0:02:36]} 17. Nb5 {[%clk 0:01:50]}  Kd7 {[%clk 0:02:31]} 18. Bf4 {[%clk 0:01:30]}  h6 {[%clk 0:02:27]} 19. h4 {[%clk 0:01:30]}  Be7 {[%clk 0:02:20]} 20. Rac1 {[%clk 0:01:29]}  Rhc8 {[%clk 0:02:15]} 21. h5 {[%clk 0:01:25]}  Na5 {[%clk 0:02:13]} 22. Nd2 {[%clk 0:01:15]}  Nc7 {[%clk 0:02:03]} 23. Nxc7 {[%clk 0:01:11]}  Rxc7 {[%clk 0:02:04]} 24. Rxc7+ {[%clk 0:01:11]}  Kxc7 {[%clk 0:02:05]} 25. Rc1+ {[%clk 0:01:12]}  Kd7 {[%clk 0:02:05]} 26. b4 {[%clk 0:01:11]}  Nc6 {[%clk 0:02:05]} 27. Be3 {[%clk 0:01:09]}  a5 {[%clk 0:01:54]} 28. b5 {[%clk 0:01:06]}  Na7 {[%clk 0:01:54]} 29. a4 {[%clk 0:01:05]}  Nc8 {[%clk 0:01:55]} 30. Nb3 {[%clk 0:00:56]}  Nb6 {[%clk 0:01:55]} 31. Kf1 {[%clk 0:00:34]}  Nxa4 {[%clk 0:01:47]} 32. Ra1 {[%clk 0:00:34]}  Nc3 {[%clk 0:01:47]} 33. Rxa5 {[%clk 0:00:34]}  Rxa5 {[%clk 0:01:45]} 34. Nxa5 {[%clk 0:00:35]}  b6 {[%clk 0:01:42]} 35. Nc6 {[%clk 0:00:22]}  Nxb5 {[%clk 0:01:41]} 36. Nxe7 {[%clk 0:00:22]}  Kxe7 {[%clk 0:01:42]} 37. Ke2 {[%clk 0:00:23]}  Na3 {[%clk 0:01:38]} 38. Bd2 {[%clk 0:00:19]}  Nb5 {[%clk 0:01:27]} 39. Kd3 {[%clk 0:00:17]}  f6 {[%clk 0:01:25]} 40. f4 {[%clk 0:00:13]}  f5 {[%clk 0:01:17]} 41. Bb4+ {[%clk 0:00:12]}  Kf7 {[%clk 0:01:17]} 42. Bd2 {[%clk 0:00:04]}  g6 {[%clk 0:01:12]} 43. hxg6+ {[%clk 0:00:04]}  Kxg6 {[%clk 0:01:13]} 44. Be3 {[%clk 0:00:02]}  Kh5 {[%clk 0:01:09]} 45. Kc2 {[%clk 0:00:03]}  Kg4 {[%clk 0:01:09]} 46. Kb3 {[%clk 0:00:03]}  Kg3 {[%clk 0:01:08]} 47. Kb4 {[%clk 0:00:04]}  Nc7 {[%clk 0:01:08]} 48. Bc1 {[%clk 0:00:03]}  h5 {[%clk 0:01:06]} 49. Ba3 {[%clk 0:00:02]}  Kxg2 {[%clk 0:01:05]} 0-1


[Site "https://www.chess.com"]